fUST/lending_fUST_20240822
["ID","MTS","AMOUNT","RATE_DAILY","PERIOD"]
[335577439,1724338948978,-2445.58,0.00032876,120]
[335577440,1724338949020,-2445.58,0.00032876,120]
[335577441,1724338949061,-2445.58,0.00032876,120]
[335577442,1724338949102,-2445.58,0.00032876,120]
[335577443,1724338949145,-2445.58,0.00032876,120]
[335577444,1724338949188,-2445.58,0.00032876,120]
[335577445,1724338949229,-2445.58,0.00032876,120]
[335577446,1724338949271,-2445.58,0.00032876,120]
[335577447,1724338949313,-2445.58,0.00032876,120]
[335577448,1724338949357,-2445.58,0.00032876,120]
[335577449,1724338949401,-2445.58,0.00032876,120]
[335577450,1724338949442,-2445.58,0.00032876,120]
[335577451,1724338949483,-2445.58,0.00032876,120]
[335577452,1724338949523,-2445.58,0.00032876,120]
[335577453,1724338949564,-2445.58,0.00032876,120]
[335577454,1724338949609,-2445.58,0.00032876,120]
[335577455,1724338949651,-2445.58,0.00032876,120]
[335577456,1724338949691,-2445.58,0.00032876,120]
[335577457,1724338949733,-2445.73704699,0.00032876,120]
[335577458,1724338949792,-844.1775,0.00032989,30]
[335577459,1724338949838,-151.0,0.00033041,120]
[335577460,1724338949891,-1916.81,0.000334,30]
[335577461,1724338949935,-168.89,0.00033938,120]
[335577462,1724338949976,-500.0,0.00034,120]
[335577463,1724338950018,-500.0,0.00034,120]
[335577464,1724338950061,-500.0,0.00034,120]
[335577465,1724338950102,-500.0,0.00034,120]
[335577466,1724338950142,-500.0,0.00034,120]
[335577467,1724338950182,-192.69,0.00034,120]
[335577468,1724338950220,-485.259962,0.00034,30]
[335577469,1724338950260,-151.0,0.00034055,120]
[335577470,1724338950303,-151.0,0.00034603,120]
[335577471,1724338950352,-640.95,0.000347,31]
[335577472,1724338950394,-640.95,0.000347,31]
[335577473,1724338950438,-640.95,0.000347,31]
[335577474,1724338950478,-640.95,0.000347,31]
[335577475,1724338950519,-640.95,0.000347,31]
[335577476,1724338950560,-640.95,0.000347,31]
[335577477,1724338950604,-640.95,0.000347,31]
[335577478,1724338950650,-640.95,0.000347,31]
[335577479,1724338950695,-640.95,0.000347,31]
[335577480,1724338950738,-640.95,0.000347,31]
[335577481,1724338950780,-640.95,0.000347,31]
[335577482,1724338950826,-640.95,0.000347,31]
[335577483,1724338950871,-640.95,0.000347,31]
[335577484,1724338950915,-640.95,0.000347,31]
[335577485,1724338950959,-640.95,0.000347,31]
[335577486,1724338951004,-640.95,0.000347,31]
[335577487,1724338951047,-640.95,0.000347,31]
[335577488,1724338951092,-640.95,0.000347,31]
[335577489,1724338951137,-640.95,0.000347,31]
[335577490,1724338951185,-640.95,0.000347,31]
[335577491,1724338951235,-640.95,0.000347,31]
[335577492,1724338951284,-640.95,0.000347,31]
[335577493,1724338951332,-640.95,0.000347,31]
[335577494,1724338951381,-640.95,0.000347,31]
[335577495,1724338951428,-640.95,0.000347,31]
[335577496,1724338951476,-640.95,0.000347,31]
[335577497,1724338951526,-640.95,0.000347,31]
[335577498,1724338951576,-640.95,0.000347,31]
[335577499,1724338951861,-640.95,0.000347,31]
[335577500,1724338951906,-640.95,0.000347,31]
[335577501,1724338951950,-640.95,0.000347,31]
[335577502,1724338951991,-640.95,0.000347,31]
[335577503,1724338952032,-640.95,0.000347,31]
[335577504,1724338952072,-640.95,0.000347,31]
[335577505,1724338952111,-640.95,0.000347,31]
[335577506,1724338952151,-640.95,0.000347,31]
[335577507,1724338952191,-640.95,0.000347,31]
[335577508,1724338952230,-640.95,0.000347,31]
[335577509,1724338952272,-640.95,0.000347,31]
[335577510,1724338952312,-640.95,0.000347,31]
[335577511,1724338952355,-640.95,0.000347,31]
[335577512,1724338952396,-640.95,0.000347,31]
[335577513,1724338952435,-640.95,0.000347,31]
[335577514,1724338952473,-640.95,0.000347,31]
[335577515,1724338952513,-640.95,0.000347,31]
[335577516,1724338952553,-640.95,0.000347,31]
[335577517,1724338952592,-640.95,0.000347,31]
[335577518,1724338952634,-640.95,0.000347,31]
[335577519,1724338952673,-640.95,0.000347,31]
[335577520,1724338952711,-640.95,0.000347,31]
[335577521,1724338952751,-640.95,0.000347,31]
[335577522,1724338952791,-640.95,0.000347,31]
[335577523,1724338952839,-640.95,0.000347,31]
[335577524,1724338952883,-640.95,0.000347,31]
[335577525,1724338952925,-640.95,0.000347,31]
[335577526,1724338952964,-640.95,0.000347,31]
[335577527,1724338953007,-640.95,0.000347,31]
[335577528,1724338953051,-640.95,0.000347,31]
[335577529,1724338953094,-640.95,0.000347,31]
[335577530,1724338953136,-640.95,0.000347,31]
[335577531,1724338953176,-150.0,0.000348,30]
[335577532,1724338953219,-640.95,0.000348,31]
[335577533,1724338953262,-640.95,0.000348,31]
[335577534,1724338953310,-640.95,0.000348,31]
[335577535,1724338953354,-640.95,0.000348,31]
[335577536,1724338953398,-640.95,0.000348,31]
[335577537,1724338953442,-640.95,0.000348,31]
[335577538,1724338953487,-640.95,0.000348,31]
[335577539,1724338953532,-640.95,0.000348,31]
[335577540,1724338953574,-640.95,0.000348,31]
[335577541,1724338953620,-640.95,0.000348,31]
[335577542,1724338953666,-640.95,0.000348,31]
[335577543,1724338953713,-640.95,0.000348,31]
[335577544,1724338953760,-640.95,0.000348,31]
[335577545,1724338953810,-640.95,0.000348,31]
[335577546,1724338953861,-640.95,0.000348,31]
[335577547,1724338953910,-640.95,0.000348,31]
[335577548,1724338953959,-640.95,0.000348,31]
[335577549,1724338954005,-640.95,0.000348,31]
[335577550,1724338954050,-640.95,0.000348,31]
[335577551,1724338954095,-640.95,0.000348,31]
[335577552,1724338954141,-640.95,0.000348,31]
[335577553,1724338954187,-640.95,0.000348,31]
[335577554,1724338954231,-640.95,0.000348,31]
[335577555,1724338954278,-640.95,0.000348,31]
[335577556,1724338954322,-640.95,0.000348,31]
[335577557,1724338954366,-640.95,0.000348,31]
[335577558,1724338954409,-640.95,0.000348,31]
[335577559,1724338954453,-640.95,0.000348,31]
[335577560,1724338954497,-640.95,0.000348,31]
[335577561,1724338954546,-640.95,0.000348,31]
[335577562,1724338954590,-640.95,0.000348,31]
[335577563,1724338954635,-640.95,0.000348,31]
[335577564,1724338954677,-640.95,0.000348,31]
[335577565,1724338954721,-640.95,0.000348,31]
[335577566,1724338954766,-640.95,0.000348,31]
[335577567,1724338954814,-640.95,0.000348,31]
[335577568,1724338954860,-640.95,0.000348,31]
[335577569,1724338954906,-640.95,0.000348,31]
[335577570,1724338954950,-640.95,0.000348,31]
[335577571,1724338954995,-640.95,0.000348,31]
[335577572,1724338955035,-2846548.41275002,0.00035,30]
[335577573,1724338956827,-211.08740278,0.00034629,120]
[335577574,1724338956872,-806.39398923,0.00034629,30]
[335577575,1724338956914,-270.32759819,0.00034629,120]
[335577576,1724338956956,-320.05469765,0.00034629,120]
[335577577,1724338956996,-356.57621385,0.00034629,120]
[335577578,1724338957036,-556.52484331,0.00034629,60]
[335577579,1724338957076,-1186.72585033,0.00034629,30]
[335577580,1724338957114,-2057.0113625,0.00034629,30]
[335577581,1724338957153,-263.52996005,0.00034629,120]
[335577582,1724338957193,-299.97504691,0.00034629,30]
[335577583,1724338957233,-231.69927109,0.00034629,30]
[335577584,1724338957271,-1032.41649461,0.00034629,120]
[335577585,1724338957309,-481.19369069,0.00034629,120]
[335577586,1724338957345,-364.07860083,0.00034629,30]
[335577587,1724338957380,-491.03973637,0.00034629,120]
[335577588,1724338957418,-206.18,0.00034629,30]
[335577589,1724338957455,-470.11490954,0.00034629,120]
[335577590,1724338957494,-721.38216616,0.00034629,120]
[335577591,1724338957532,-167.09751575,0.00034629,30]
[335577592,1724338957569,-240.82074905,0.00034629,120]
[335577593,1724338957606,-202.02092072,0.00034629,30]
[335577594,1724338957643,-571.39735059,0.00034629,120]
[335577595,1724338957681,-150.0,0.00034629,30]
[335577596,1724338957719,-150.0,0.00034629,30]
[335577597,1724338957757,-150.0,0.00034629,30]
[335577598,1724338957794,-150.0,0.00034629,30]
[335577599,1724338957833,-150.0,0.00034629,30]
[335577600,1724338957873,-250.0,0.00034629,30]
[335577601,1724338957911,-250.0,0.00034629,30]
[335577602,1724338957947,-250.0,0.00034629,30]
[335577603,1724338957984,-250.0,0.00034629,30]
[335577604,1724338958020,-250.0,0.00034629,30]
[335577605,1724338958057,-250.0,0.00034629,30]
[335577606,1724338958094,-250.0,0.00034629,30]
[335577607,1724338958131,-250.0,0.00034629,30]
[335577608,1724338958170,-250.0,0.00034629,30]
[335577609,1724338958207,-250.0,0.00034629,30]
[335577610,1724338958248,-250.0,0.00034629,30]
[335577611,1724338958285,-498.284785,0.00034629,30]
[335577612,1724338967694,-875486.21421097,0.00035,30]
[335577613,1724338967733,-165.45233398,0.00035,120]
[335577614,1724338967775,-549.52725229,0.00035,120]
[335577615,1724338967821,-200.0,0.00035,120]
[335577616,1724338967862,-151.0,0.00035068,120]
[335577617,1724338967902,-1916.81,0.000351,30]
[335577618,1724338967943,-501.87031922,0.000355,120]
[335577619,1724338967985,-500.0,0.00035616,30]
[335577620,1724338968025,-529.17959087,0.00035616,30]
[335577621,1724338968063,-453.324554,0.00035616,120]
[335577622,1724338968101,-150.0,0.000358,30]
[335577623,1724338968140,-243.0,0.00036,30]
[335577624,1724338968180,-1000.0,0.00036,120]
[335577625,1724338968219,-250.0,0.00036,30]
[335577626,1724338968259,-151.0,0.00036082,120]
[335577627,1724338968297,-821.32247139,0.0003609,120]
[335577628,1724338968584,-1396.33647499,0.000368,30]
[335577629,1724338968626,-293.96344855,0.000368,30]
[335577630,1724338968667,-284.40062871,0.000368,30]
[335577631,1724338968709,-267.14448596,0.000368,30]
[335577632,1724338968750,-200.0,0.000368,30]
[335577633,1724338968791,-151.0,0.00036904,120]
[335577634,1724338968833,-1127.09916069,0.0003707,31]
[335577635,1724338968875,-151.0,0.00037096,120]
[335577636,1724338968919,-527.11957315,0.00038,30]
[335577637,1724338968963,-1000.0,0.00038,120]
[335577638,1724338969004,-250.0,0.00038,30]
[335577639,1724338969045,-151.0,0.0003811,120]
[335577640,1724338969088,-4690.36026361,0.00038787,60]
[335577641,1724338969133,-150.0,0.00039,30]
[335577642,1724338969176,-151.0,0.00039123,120]
[335577643,1724338969218,-151.0,0.00039205,120]
[335577644,1724338969263,-10000.0,0.0004,30]
[335577645,1724338969303,-396.96067843,0.0004,120]
[335577646,1724338969344,-278.94553895,0.0004,30]
[335577647,1724338969387,-200.60560865,0.0004,120]
[335577648,1724338969428,-150.0,0.0004,30]
[335577649,1724338969468,-565.53125159,0.0004,120]
[335577650,1724338969513,-1064.95482127,0.0004,30]
[335577651,1724338969554,-465.15379596,0.0004,120]
[335577652,1724338969596,-407.40779166,0.0004,120]
[335577653,1724338969638,-530.94170351,0.0004,120]
[335577654,1724338969680,-311.73331001,0.0004,30]
[335577655,1724338969722,-873.59892786,0.0004,30]
[335577656,1724338969764,-393.97509992,0.0004,120]
[335577657,1724338969806,-60695.78948,0.0004,30]
[335577658,1724338969854,-150.0,0.0004,30]
[335577659,1724338969899,-1000.0,0.0004,120]
[335577660,1724338969942,-1024.0,0.0004,120]
[335577661,1724338969985,-1000.0,0.0004,120]
[335577662,1724338970026,-346.72717815,0.0004,40]
[335577663,1724338970067,-250.0,0.0004,30]
[335577664,1724338970108,-151.0,0.00040137,120]
[335577665,1724338970147,-799.7565855,0.000402,120]
[335577666,1724338970189,-677.61597603,0.000409,120]
[335577667,1724338970228,-1646.08030211,0.000409,30]
[335577668,1724338970268,-200.0,0.00041,30]
[335577669,1724338970307,-150.06429062,0.00041,120]
[335577670,1724338970345,-272.301297,0.00041,120]
[335577671,1724338970385,-3340.88,0.00041095,120]
[335577672,1724338970424,-1000.0,0.00041095,120]
[335577673,1724338970463,-1000.0,0.00041095,120]
[335577674,1724338970501,-913.1230589,0.00041095,120]
[335577675,1724338970541,-500.0,0.00041095,120]
[335577676,1724338970579,-151.0,0.00041151,120]
[335577677,1724338970618,-152.0,0.00041163,31]
[335577678,1724338970656,-152.0,0.00041163,31]
[335577679,1724338970696,-3340.88,0.00041369,120]
[335577680,1724338970736,-500.0,0.00041369,120]
[335577681,1724338970775,-151.0,0.00041507,120]
[335577682,1724338970817,-453.324554,0.00041553,120]
[335577683,1724338970859,-2999.99358201,0.0004159,30]
[335577684,1724338970899,-3340.88,0.00041643,120]
[335577685,1724338970940,-500.0,0.00041643,120]
[335577686,1724338970980,-152.0,0.0004168,31]
[335577687,1724338971019,-152.0,0.0004168,31]
[335577688,1724338971061,-3340.88,0.00041917,120]
[335577689,1724338971103,-500.0,0.00041917,120]
[335577690,1724338971144,-200000.0,0.00042,60]
[335577691,1724338971186,-1000.0,0.00042,120]
[335577692,1724338971228,-250.0,0.00042,30]
[335577693,1724338971268,-500.0,0.00042034,30]
[335577694,1724338971309,-500.0,0.00042034,30]
[335577695,1724338971352,-248.88741422,0.00042047,42]
[335577696,1724338971395,-151.0,0.00042164,120]
[335577697,1724338971437,-3340.88,0.00042191,120]
[335577698,1724338971479,-500.0,0.00042191,120]
[335577699,1724338971525,-358.08714302,0.000424,120]
[335577700,1724338971568,-3340.88,0.00042465,120]
[335577701,1724338971614,-500.0,0.00042465,120]
[335577702,1724338971655,-384.99039104,0.000425,120]
[335577703,1724338971696,-3340.88,0.00042739,120]
[335577704,1724338971737,-525.62,0.00042739,120]
[335577705,1724338971777,-499999.0,0.000428,60]
[335577706,1724338971820,-499999.0,0.000428,60]
[335577707,1724338971862,-499999.0,0.000428,60]
[335577708,1724338971903,-284408.54545121,0.000428,60]
[335577709,1724338982498,-215590.45454879,0.000428,60]
[335577710,1724338982537,-3061.28766918,0.000428,60]
[335577711,1724338982576,-150.0,0.00043,60]
[335577712,1724338982861,-1321.0,0.00043,120]
[335577713,1724338982902,-200000.0,0.00043,60]
[335577714,1724338982940,-3340.88,0.00043013,120]
[335577715,1724338982975,-151.0,0.00043178,120]
[335577716,1724338983012,-3340.88,0.00043287,120]
[335577717,1724338983054,-500.0,0.00043461,120]
[335577718,1724338983089,-1512.88219185,0.00043529,40]
[335577719,1724338983125,-3340.88,0.00043561,120]
[335577720,1724338983163,-151.0,0.00043808,120]
[335577721,1724338983205,-3340.88,0.00043835,120]
[335577722,1724338983248,-3000.0,0.00043835,120]
[335577723,1724338983289,-2000.0,0.00043835,120]
[335577724,1724338983330,-2000.0,0.00043835,120]
[335577725,1724338983375,-2000.0,0.00043835,120]
[335577726,1724338983419,-2000.0,0.00043835,120]
[335577727,1724338983462,-568.99872742,0.00043835,120]
[335577728,1724338983504,-1855.26295777,0.00043835,120]
[335577729,1724338983546,-150.0,0.00044,60]
[335577730,1724338983586,-200000.0,0.00044,60]
[335577731,1724338983629,-154.76012181,0.00044,120]
[335577732,1724338983672,-1000.0,0.00044,120]
[335577733,1724338983715,-68516.13,0.00044,30]
[335577734,1724338983760,-250.0,0.00044,30]
[335577735,1724338983804,-3340.88,0.00044109,120]
[335577736,1724338983850,-151.0,0.00044192,120]
[335577737,1724338983893,-500.0,0.00044246,30]
[335577738,1724338983939,-500.0,0.00044246,30]
[335577739,1724338983983,-3340.88,0.00044383,120]
[335577740,1724338984023,-254.0,0.00044384,120]
[335577741,1724338984065,-254.0,0.00044384,120]
[335577742,1724338984108,-254.0,0.00044384,120]
[335577743,1724338984149,-254.0,0.00044384,120]
[335577744,1724338984190,-254.0,0.00044384,120]
[335577745,1724338984233,-254.0,0.00044384,120]
[335577746,1724338984272,-254.0,0.00044384,120]
[335577747,1724338984311,-254.0,0.00044384,120]
[335577748,1724338984352,-254.0,0.00044384,120]
[335577749,1724338984392,-254.0,0.00044384,120]
[335577750,1724338984432,-254.0,0.00044384,120]
[335577751,1724338984471,-254.0,0.00044384,120]
[335577752,1724338984511,-254.0,0.00044384,120]
[335577753,1724338984551,-553.0,0.00044384,120]
[335577754,1724338984591,-553.0,0.00044384,120]
[335577755,1724338984633,-553.0,0.00044384,120]
[335577756,1724338984675,-553.0,0.00044384,120]
[335577757,1724338984714,-553.0,0.00044384,120]
[335577758,1724338984754,-553.0,0.00044384,120]
[335577759,1724338984794,-553.0,0.00044384,120]
[335577760,1724338984841,-553.0,0.00044384,120]
[335577761,1724338984882,-553.0,0.00044384,120]
[335577762,1724338984924,-553.0,0.00044384,120]
[335577763,1724338984967,-553.0,0.00044384,120]
[335577764,1724338985009,-553.0,0.00044384,120]
[335577765,1724338985054,-553.0,0.00044384,120]
[335577766,1724338985095,-254.0,0.00044384,120]
[335577767,1724338985134,-254.0,0.00044384,120]
[335577768,1724338985174,-254.0,0.00044384,120]
[335577769,1724338985212,-254.0,0.00044384,120]
[335577770,1724338985250,-254.0,0.00044384,120]
[335577771,1724338985288,-254.0,0.00044384,120]
[335577772,1724338985327,-254.0,0.00044384,120]
[335577773,1724338985366,-254.0,0.00044384,120]
[335577774,1724338985403,-254.0,0.00044384,120]
[335577775,1724338985442,-254.0,0.00044384,120]
[335577776,1724338985481,-254.0,0.00044384,120]
[335577777,1724338985520,-254.0,0.00044384,120]
[335577778,1724338985558,-254.0,0.00044384,120]
[335577779,1724338985595,-254.0,0.00044384,120]
[335577780,1724338985631,-553.0,0.00044384,120]
[335577781,1724338985667,-553.0,0.00044384,120]
[335577782,1724338985704,-553.0,0.00044384,120]
[335577783,1724338985741,-553.0,0.00044384,120]
[335577784,1724338985777,-553.0,0.00044384,120]
[335577785,1724338985814,-553.0,0.00044384,120]
[335577786,1724338985854,-553.0,0.00044384,120]
[335577787,1724338985894,-553.0,0.00044384,120]
[335577788,1724338985934,-553.0,0.00044384,120]
[335577789,1724338985971,-553.0,0.00044384,120]
[335577790,1724338986013,-553.0,0.00044384,120]
[335577791,1724338986052,-553.0,0.00044384,120]
[335577792,1724338986091,-553.0,0.00044384,120]
[335577793,1724338986130,-553.0,0.00044384,120]
[335577794,1724338986170,-254.0,0.00044384,120]
[335577795,1724338986208,-254.0,0.00044384,120]
[335577796,1724338986245,-254.0,0.00044384,120]
[335577797,1724338986283,-254.0,0.00044384,120]
[335577798,1724338986322,-254.0,0.00044384,120]
[335577799,1724338986360,-254.0,0.00044384,120]
[335577800,1724338986398,-254.0,0.00044384,120]
[335577801,1724338986437,-254.0,0.00044384,120]
[335577802,1724338986476,-254.0,0.00044384,120]
[335577803,1724338986515,-254.0,0.00044384,120]
[335577804,1724338986552,-254.0,0.00044384,120]
[335577805,1724338986592,-254.0,0.00044384,120]
[335577806,1724338986631,-254.0,0.00044384,120]
[335577807,1724338986675,-254.0,0.00044384,120]
[335577808,1724338986713,-553.0,0.00044384,120]
[335577809,1724338986750,-553.0,0.00044384,120]
[335577810,1724338986787,-553.0,0.00044384,120]
[335577811,1724338986828,-553.0,0.00044384,120]
[335577812,1724338986871,-553.0,0.00044384,120]
[335577813,1724338986913,-553.0,0.00044384,120]
[335577814,1724338986952,-553.0,0.00044384,120]
[335577815,1724338986988,-553.0,0.00044384,120]
[335577816,1724338987025,-553.0,0.00044384,120]
[335577817,1724338987222,-553.0,0.00044384,120]
[335577818,1724338987258,-553.0,0.00044384,120]
[335577819,1724338987295,-553.0,0.00044384,120]
[335577820,1724338987332,-553.0,0.00044384,120]
[335577821,1724338987370,-553.0,0.00044384,120]
[335577822,1724338987411,-254.0,0.00044384,120]
[335577823,1724338987449,-254.0,0.00044384,120]
[335577824,1724338987487,-254.0,0.00044384,120]
[335577825,1724338987525,-254.0,0.00044384,120]
[335577826,1724338987564,-254.0,0.00044384,120]
[335577827,1724338987600,-254.0,0.00044384,120]
[335577828,1724338987635,-254.0,0.00044384,120]
[335577829,1724338987672,-254.0,0.00044384,120]
[335577830,1724338987709,-254.0,0.00044384,120]
[335577831,1724338987745,-254.0,0.00044384,120]
[335577832,1724338987783,-254.0,0.00044384,120]
[335577833,1724338987821,-254.0,0.00044384,120]
[335577834,1724338987861,-254.0,0.00044384,120]
[335577835,1724338987900,-254.0,0.00044384,120]
[335577836,1724338987939,-553.0,0.00044384,120]
[335577837,1724338987977,-553.0,0.00044384,120]
[335577838,1724338988013,-553.0,0.00044384,120]
[335577839,1724338988051,-553.0,0.00044384,120]
[335577840,1724338988089,-553.0,0.00044384,120]
[335577841,1724338988130,-553.0,0.00044384,120]
[335577842,1724338988172,-553.0,0.00044384,120]
[335577843,1724338988221,-553.0,0.00044384,120]
[335577844,1724338988264,-553.0,0.00044384,120]
[335577845,1724338988305,-553.0,0.00044384,120]
[335577846,1724338988345,-553.0,0.00044384,120]
[335577847,1724338988386,-553.0,0.00044384,120]
[335577848,1724338988425,-553.0,0.00044384,120]
[335577849,1724338988465,-553.0,0.00044384,120]
[335577850,1724338988508,-254.0,0.00044384,120]
[335577851,1724338988553,-254.0,0.00044384,120]
[335577852,1724338988599,-254.0,0.00044384,120]
[335577853,1724338988643,-254.0,0.00044384,120]
[335577854,1724338988690,-254.0,0.00044384,120]
[335577855,1724338988736,-254.0,0.00044384,120]
[335577856,1724338988779,-254.0,0.00044384,120]
[335577857,1724338988824,-254.0,0.00044384,120]
[335577858,1724338988870,-254.0,0.00044384,120]
[335577859,1724338988912,-254.0,0.00044384,120]
[335577860,1724338988955,-254.0,0.00044384,120]
[335577861,1724338988996,-254.0,0.00044384,120]
[335577862,1724338989037,-254.0,0.00044384,120]
[335577863,1724338989079,-254.0,0.00044384,120]
[335577864,1724338989120,-553.0,0.00044384,120]
[335577865,1724338989160,-553.0,0.00044384,120]
[335577866,1724338989201,-553.0,0.00044384,120]
[335577867,1724338989240,-553.0,0.00044384,120]
[335577868,1724338989279,-553.0,0.00044384,120]
[335577869,1724338989317,-553.0,0.00044384,120]
[335577870,1724338989358,-553.0,0.00044384,120]
[335577871,1724338989397,-553.0,0.00044384,120]
[335577872,1724338989437,-553.0,0.00044384,120]
[335577873,1724338989475,-553.0,0.00044384,120]
[335577874,1724338989514,-553.0,0.00044384,120]
[335577875,1724338989553,-553.0,0.00044384,120]
[335577876,1724338989592,-553.0,0.00044384,120]
[335577877,1724338989629,-553.0,0.00044384,120]
[335577878,1724338989669,-254.0,0.00044384,120]
[335577879,1724338989708,-254.0,0.00044384,120]
[335577880,1724338989746,-254.0,0.00044384,120]
[335577881,1724338989786,-254.0,0.00044384,120]
[335577882,1724338989827,-254.0,0.00044384,120]
[335577883,1724338989872,-254.0,0.00044384,120]
[335577884,1724338989914,-254.0,0.00044384,120]
[335577885,1724338989958,-254.0,0.00044384,120]
[335577886,1724338990002,-254.0,0.00044384,120]
[335577887,1724338990045,-254.0,0.00044384,120]
[335577888,1724338990088,-254.0,0.00044384,120]
[335577889,1724338990130,-254.0,0.00044384,120]
[335577890,1724338990169,-254.0,0.00044384,120]
[335577891,1724338990209,-254.0,0.00044384,120]
[335577892,1724338990249,-553.0,0.00044384,120]
[335577893,1724338990290,-553.0,0.00044384,120]
[335577894,1724338990331,-553.0,0.00044384,120]
[335577895,1724338990373,-553.0,0.00044384,120]
[335577896,1724338990413,-553.0,0.00044384,120]
[335577897,1724338990454,-553.0,0.00044384,120]
[335577898,1724338990492,-553.0,0.00044384,120]
[335577899,1724338990536,-553.0,0.00044384,120]
[335577900,1724338990576,-553.0,0.00044384,120]
[335577901,1724338990615,-553.0,0.00044384,120]
[335577902,1724338990654,-553.0,0.00044384,120]
[335577903,1724338990694,-553.0,0.00044384,120]
[335577904,1724338990734,-553.0,0.00044384,120]
[335577905,1724338990773,-553.0,0.00044384,120]
[335577906,1724338990812,-50000.0,0.0004444,30]
[335577907,1724338990858,-3340.88,0.00044657,120]
[335577908,1724338990901,-397.20973998,0.000447,120]
[335577909,1724338990942,-3340.88,0.00044931,120]
[335577910,1724338990982,-1000.0,0.00044999,120]
[335577911,1724338991020,-232.82326121,0.00045,120]
[335577912,1724338991060,-200.0,0.00045,60]
[335577913,1724338991099,-765.86371689,0.00045,120]
[335577914,1724338991136,-1500.0,0.00045,120]
[335577915,1724338991177,-5288.66204064,0.00045,70]
[335577916,1724338991224,-501.35618305,0.00045,90]
[335577917,1724338991268,-3340.88,0.00045205,120]
[335577918,1724338991314,-3000.0,0.00045205,120]
[335577919,1724338991361,-151.0,0.00045205,120]
[335577920,1724338991405,-200.0,0.00045254,120]
[335577921,1724338991623,-200.0,0.00045444,120]
[335577922,1724338991666,-3340.88,0.00045479,120]
[335577923,1724338991706,-659.0,0.00045678,30]
[335577924,1724338991749,-3340.88,0.00045753,120]
[335577925,1724338991790,-561.91750916,0.00046,120]
[335577926,1724338991832,-163.13837097,0.00046,120]
[335577927,1724338991875,-1000.0,0.00046,120]
[335577928,1724338991915,-250.0,0.00046,30]
[335577929,1724338991957,-3340.88,0.00046027,120]
[335577930,1724338991994,-151.0,0.0004611,120]
[335577931,1724338992033,-151.0,0.00046219,120]
[335577932,1724338992075,-3340.88,0.00046301,120]
[335577933,1724338992116,-3340.88,0.00046575,120]
[335577934,1724338992155,-3000.0,0.00046575,120]
[335577935,1724338992192,-500.0,0.00046575,120]
[335577936,1724338992230,-500.0,0.00046575,120]
[335577937,1724338992270,-500.0,0.00046575,120]
[335577938,1724338992309,-496.41313982,0.00046575,120]